bitfinex/quotes_ETHUSD_20250603
["timestamp","ask_amount","ask_price","bid_price","bid_amount"]
[1748960602794,12.52521896,2634.2,2634.1,0.02]
[1748960603682,5.75921896,2634.2,2634.1,0.02]
[1748960603891,13.47774883,2634.2,2634.1,0.02]
[1748960604297,0.95552987,2634.2,2634.1,0.02]
[1748960604458,1.963,2634.5,2634.1,0.02]
[1748960604665,7.11865374,2634.8,2634.4,3.79588994]
[1748960604860,1.64335085,2634.8,2634.5,3.79576267]
[1748960605060,0.35565374,2634.8,2634.5,3.79576267]
[1748960605258,0.35565374,2634.8,2634.5,11.88525966]
[1748960605489,0.35565374,2634.8,2634.2,3.79621896]
[1748960605691,0.35565374,2634.8,2634.4,3.79586662]
[1748960605899,0.35565374,2634.8,2634.7,3.79549853]
[1748960606284,0.35565374,2634.8,2634.3,8.0]
[1748960606484,0.35565374,2634.8,2634.4,3.79592357]
[1748960606997,0.35565374,2634.8,2634.5,3.79566998]
[1748960607195,0.35565374,2634.8,2634.5,3.79571102]
[1748960607407,0.35565374,2634.8,2634.3,8.0]
[1748960607576,0.35565374,2634.8,2634.6,3.7955045]
[1748960607773,0.35565374,2634.8,2634.7,3.79549853]
[1748960608315,0.35565374,2634.8,2634.4,3.79582517]
[1748960608488,0.35565374,2634.8,2634.7,3.79549853]
[1748960609075,0.35565374,2634.8,2634.7,13.79549853]
[1748960610299,0.35565374,2634.8,2634.7,3.79549853]
[1748960611011,0.35565374,2634.8,2634.3,8.0]
[1748960611317,0.35565374,2634.8,2634.2,8.0]
[1748960611498,0.35565374,2634.8,2634.5,3.7956996]
[1748960611704,0.35565374,2634.8,2634.6,3.79561967]
[1748960611928,0.35565374,2634.8,2634.2,11.79619045]
[1748960612081,0.35565374,2634.8,2634.7,3.79549853]
[1748960612277,0.35565374,2634.8,2634.7,11.88499552]
[1748960613485,0.35565374,2634.8,2634.7,19.88499552]
[1748960616616,0.35565374,2634.8,2634.7,11.79549853]
[1748960618636,0.35565374,2634.8,2634.3,8.08949699]
[1748960618925,0.35565374,2634.8,2634.7,3.79549853]
[1748960622893,0.35565374,2634.8,2634.7,11.88499552]
[1748960624401,0.35565374,2634.8,2634.7,3.79549853]
[1748960624603,0.35565374,2634.8,2634.7,11.88499552]
[1748960625530,0.35565374,2634.8,2634.7,4.04644509]
[1748960625739,0.35565374,2634.8,2634.7,8.61111015]
[1748960627126,0.35565374,2634.8,2634.7,7.84194362]
[1748960629220,0.25565374,2634.8,2634.7,4.04644509]
[1748960629546,0.25565374,2634.8,2634.7,7.84194362]
[1748960629721,0.25565374,2634.8,2634.5,11.88521159]
[1748960629920,0.25565374,2634.8,2634.3,8.0]
[1748960630121,0.25565374,2634.8,2633.9,3.7966202]
[1748960630325,3.7959785,2634.4,2633.9,3.79659011]
[1748960630625,3.79557086,2634.7,2634.2,3.79615478]
[1748960630830,3.79557086,2634.7,2634.1,8.10949699]
[1748960630831,0.40512246,2634.6,2634.1,8.10949699]
[1748960631036,0.40512246,2634.6,2634.2,3.79608754]
[1748960631639,3.7957943,2634.5,2634.1,0.02]
[1748960632311,4.20084158,2634.6,2634.1,0.02]
[1748960632621,4.20083811,2634.6,2634.1,0.02]
[1748960632819,1.27898381,2634.5,2634.1,0.02]
[1748960633024,3.79621896,2634.2,2634.1,0.02]
[1748960633232,10.47821896,2634.2,2634.1,0.02]
[1748960633611,6.684,2634.2,2634.1,0.02]
[1748960633817,10.48021896,2634.2,2634.1,0.02]
[1748960634017,11.90784811,2634.2,2634.1,0.02]
[1748960637031,11.89784811,2634.2,2634.1,0.02]
[1748960637839,13.79684811,2634.2,2634.1,0.02]
[1748960638149,5.22384811,2634.2,2634.1,0.02]
[1748960638357,7.12584811,2634.2,2634.1,0.02]
[1748960638525,13.79384811,2634.2,2634.1,0.02]
[1748960638731,6.669,2634.2,2634.1,0.02]
[1748960638928,10.46597697,2634.4,2634.1,0.02]
[1748960639254,6.67,2634.3,2634.1,0.02]
[1748960639454,5.69781156,2634.5,2634.1,0.02]
[1748960639614,1.902,2634.5,2634.1,0.02]
[1748960639811,0.61027484,2634.5,2634.2,3.79615504]
[1748960640017,6.10278837,2634.6,2634.1,3.81628193]
[1748960640248,8.97512246,2634.6,2634.1,0.02]
[1748960640460,3.79586452,2634.5,2634.1,0.02]
[1748960640643,8.97512246,2634.6,2634.2,3.79613359]
[1748960641047,8.97512246,2634.6,2634.3,8.08949699]
[1748960641358,0.25565374,2634.8,2634.7,3.79549853]
[1748960641561,3.79456523,2635.4,2634.9,3.79508524]
[1748960642150,1.902,2635.5,2634.7,11.88496714]
[1748960642315,4.65291933,2635.4,2634.8,3.79527225]
[1748960642512,4.65291933,2635.4,2634.9,3.79520645]
[1748960642717,4.65291933,2635.4,2634.8,3.79528241]
[1748960642938,3.79472578,2635.3,2634.7,8.08949699]
[1748960643143,4.65281977,2635.4,2634.9,3.79519223]
[1748960643355,4.65281977,2635.4,2634.8,3.79529725]
[1748960643551,3.7946601,2635.3,2634.8,3.79529725]
[1748960643932,0.8583,2635.4,2634.9,3.79511622]
[1748960644158,12.37439472,2635.5,2635.0,3.79504839]
[1748960644366,3.79439472,2635.5,2635.0,3.79504839]
[1748960644663,10.46450937,2635.4,2634.8,3.79528422]
[1748960644866,3.79514667,2635.0,2634.4,3.79579312]
[1748960645174,3.79514667,2635.0,2634.5,3.79569545]
[1748960645338,6.67,2635.4,2634.3,11.88547141]
[1748960645659,3.79502972,2635.1,2634.5,3.7957103]
[1748960645960,3.79508596,2635.0,2634.5,4.16698822]
[1748960646459,7.335,2635.3,2634.5,0.37127792]
[1748960646661,3.79504233,2635.1,2634.5,4.16705552]
[1748960646860,3.79504233,2635.1,2634.5,3.7957776]
[1748960647250,3.79514471,2635.0,2634.5,3.7957776]
[1748960647567,0.60943833,2635.1,2634.5,3.79567806]
[1748960647864,4.40449242,2635.1,2634.5,3.79567806]
[1748960648473,4.40449242,2635.1,2634.6,3.7956276]
[1748960648679,4.40449242,2635.1,2634.6,11.88512459]
[1748960648962,3.7950727,2635.0,2634.6,8.08949699]
[1748960649361,4.2355238,2635.0,2634.6,8.08949699]
[1748960649584,7.0884511,2635.0,2634.5,0.37188718]
[1748960649763,7.0884511,2635.0,2634.3,11.88550571]
[1748960649764,7.0884511,2635.0,2634.1,0.02]
[1748960649950,7.0884511,2635.0,2634.2,3.79620486]
[1748960649951,3.79558888,2634.7,2634.2,3.79620486]
[1748960650156,3.79543343,2634.8,2634.3,11.88550949]
[1748960650769,3.79501005,2635.1,2634.4,8.08949699]
[1748960650981,3.79501005,2635.1,2634.7,8.08949699]
[1748960651539,0.667,2635.3,2634.7,8.08949699]
[1748960651755,3.79455885,2635.4,2634.9,3.79519692]
[1748960651948,3.79466632,2635.3,2634.8,3.79530245]
[1748960652342,3.79466632,2635.3,2634.7,3.54146331]
[1748960652641,0.19800336,2636.1,2635.0,8.08949699]
[1748960652843,1.902,2635.9,2635.1,3.79485176]
[1748960653064,1.902,2635.9,2635.0,8.08949699]
[1748960653065,6.654,2635.8,2635.0,11.88442291]
[1748960653278,3.79426625,2635.6,2635.0,8.08949699]
[1748960653452,3.79438516,2635.5,2635.0,11.88448819]
[1748960653862,4.55323416,2635.5,2635.0,8.08949699]
[1748960654265,3.79457117,2635.4,2635.0,8.08949699]
[1748960654476,0.758849,2635.5,2635.1,3.79482737]
[1748960654683,3.79421659,2635.6,2635.1,3.79482737]
[1748960654886,3.79434809,2635.5,2635.0,8.08949699]
[1748960655081,3.79456379,2635.4,2635.0,8.08949699]
[1748960655284,3.7944123,2635.5,2635.0,8.08949699]
[1748960655461,0.37944123,2635.4,2635.0,11.88453503]
[1748960655649,4.17393884,2635.4,2635.0,8.08949699]
[1748960655846,6.654,2635.8,2635.0,11.88447871]
[1748960656088,3.79432937,2635.6,2635.1,3.79482654]
[1748960656285,6.654,2635.8,2634.8,3.79530626]
[1748960656581,3.79466813,2635.3,2634.8,3.79528875]
[1748960656788,3.79416049,2635.7,2635.0,3.79495284]
[1748960656946,4.83912927,2635.6,2635.1,3.79490955]
[1748960657146,4.83912927,2635.6,2635.0,3.79494869]
[1748960657147,3.79441484,2635.5,2635.0,3.79494869]
[1748960657347,3.79473837,2635.3,2634.8,3.79524396]
[1748960657588,1.04481605,2635.6,2634.7,8.08949699]
[1748960657589,3.79438093,2635.5,2635.1,3.79491582]
[1748960657794,6.633,2635.3,2635.1,3.79491582]
[1748960657949,0.6633,2635.3,2635.1,3.79491582]
[1748960658155,6.63,2635.5,2635.3,3.79460189]
[1748960658351,6.63,2635.5,2635.2,3.79469403]
[1748960658560,10.42435675,2635.5,2635.1,3.79484464]
[1748960658758,2.94681605,2635.6,2635.2,3.79471797]
[1748960658967,8.529,2635.6,2635.2,3.79471797]
[1748960659170,3.79448035,2635.5,2634.9,3.79511583]
[1748960659366,12.32327927,2635.6,2635.1,3.79486055]
[1748960659566,3.79435958,2635.5,2635.1,3.79486055]
[1748960659854,1.23233596,2635.4,2635.1,3.79490992]
[1748960660385,1.23233596,2635.4,2635.1,3.7948633]
[1748960660594,1.23233596,2635.4,2635.2,3.79475893]
[1748960661095,1.23233596,2635.4,2634.6,8.0]
[1748960661096,1.902,2635.6,2635.0,8.08949699]
[1748960661388,1.902,2635.6,2635.2,3.7946973]
[1748960661594,1.902,2635.6,2635.3,3.79456715]
[1748960661955,1.902,2635.6,2635.4,3.7944885]
[1748960662151,1.902,2635.6,2635.3,3.79451739]
[1748960662379,2.7537,2635.6,2635.3,3.79451739]
[1748960662751,2.7537,2635.6,2635.2,3.79469644]
[1748960662957,6.54798287,2635.6,2635.0,3.79492783]
[1748960663157,2.7537,2635.6,2635.1,3.79490276]
[1748960663355,0.93687,2635.5,2635.1,3.79490276]
[1748960663561,4.73128407,2635.5,2635.0,3.79498638]
[1748960663789,3.7945934,2635.4,2634.8,3.79526144]
[1748960664104,6.604,2635.4,2635.1,3.79484848]
[1748960664297,6.604,2635.4,2635.0,3.79497147]
[1748960664497,0.940287,2635.3,2635.0,3.79496403]
[1748960664799,0.940287,2635.3,2635.0,3.79499746]
[1748960664999,0.940287,2635.3,2634.9,3.79513874]
[1748960665301,0.940287,2635.3,2634.7,3.79549853]
[1748960665602,0.940287,2635.3,2635.0,3.79503127]
[1748960665978,0.940287,2635.3,2634.9,3.79514817]
[1748960666209,0.7540287,2635.2,2634.3,0.38220158]
[1748960666370,4.54887184,2635.2,2634.4,3.79586943]
[1748960666564,3.79499673,2635.1,2634.5,3.79572723]
[1748960666765,4.62947551,2635.0,2634.5,3.79572723]
[1748960666990,3.79522211,2634.9,2634.4,3.79586845]
[1748960667194,7.43438686,2635.0,2634.5,3.79571958]
[1748960667379,7.43338686,2635.0,2634.6,3.79558055]
[1748960667767,0.83438686,2635.0,2634.7,3.79546542]
[1748960668100,8.458,2635.1,2634.5,8.08949699]
[1748960668306,12.25292679,2635.1,2634.6,3.79553955]
[1748960669088,3.79515831,2635.0,2634.5,11.88522236]
[1748960669293,1.6048082,2634.9,2634.5,11.88522236]
[1748960669614,1.6048082,2634.9,2634.5,3.79572536]
[1748960669795,5.40006085,2634.9,2634.4,3.795851]
[1748960670168,5.40006085,2634.9,2634.5,3.79577304]
[1748960670383,1.6048082,2634.9,2634.4,3.79587266]
[1748960670577,0.53999578,2634.8,2634.4,3.79593076]
[1748960671489,4.33536304,2634.8,2634.3,4.18410578]
[1748960672111,4.33536304,2634.8,2634.4,3.79591846]
[1748960672309,3.79578952,2634.5,2634.1,0.02]
[1748960672610,6.589,2634.7,2634.2,8.08949699]
[1748960672811,1.09244192,2634.6,2634.3,3.79601436]
[1748960672987,1.09244192,2634.6,2634.2,11.88565198]
[1748960673391,1.09244192,2634.6,2634.1,0.02]
[1748960673599,3.79604642,2634.4,2634.1,0.02]
[1748960674015,3.79578667,2634.5,2634.1,0.02]
[1748960674016,3.79615408,2634.3,2634.1,0.02]
[1748960674197,0.37961541,2634.2,2634.1,0.02]
[1748960674399,3.79616634,2634.3,2634.1,0.02]
[1748960675112,3.79621896,2634.2,2634.1,0.02]
[1748960675284,10.38821896,2634.2,2634.1,0.02]
[1748960676322,6.592,2634.2,2634.1,0.02]
[1748960676718,10.38221896,2634.2,2634.1,0.02]
[1748960676921,11.98623446,2634.2,2634.1,0.02]
[1748960678534,8.1900155,2634.2,2634.1,0.02]
[1748960678715,8.1830155,2634.2,2634.1,0.02]
[1748960678915,11.97923446,2634.2,2634.1,0.02]
[1748960679639,8.1830155,2634.2,2634.1,0.02]
[1748960679930,6.574,2634.2,2634.1,0.02]
[1748960680793,10.37021896,2634.2,2634.1,0.02]
[1748960681017,10.36618896,2634.3,2634.1,0.02]
[1748960681221,6.57,2634.3,2634.1,0.02]
[1748960681444,1.862,2634.5,2634.1,0.02]
[1748960681644,6.33284307,2634.5,2634.1,0.02]
[1748960681955,6.569,2634.4,2634.1,0.02]
[1748960682750,2.536996,2634.5,2634.1,0.02]
[1748960683076,10.35993076,2634.4,2634.1,0.02]
[1748960683222,3.79614155,2634.3,2634.1,0.02]
[1748960683421,3.79621896,2634.2,2634.1,0.02]
[1748960687845,1.862,2634.5,2634.1,0.02]
[1748960688043,3.79621896,2634.2,2634.1,0.02]
[1748960689472,10.35910406,2634.3,2634.1,0.02]
[1748960689680,10.35909929,2634.3,2634.1,0.02]
[1748960690231,8.16469269,2634.3,2634.1,0.02]
[1748960691037,11.96077064,2634.3,2634.1,0.02]
[1748960691577,11.96078397,2634.3,2634.1,0.02]
[1748960691775,3.79621896,2634.2,2634.1,0.02]
[1748960694760,12.70880776,2634.2,2634.1,0.02]
[1748960694962,16.57872073,2634.2,2634.1,0.02]
[1748960695169,24.47872073,2634.2,2634.1,0.02]
[1748960695655,29.04398566,2634.2,2634.1,0.02]
[1748960695880,28.47472073,2634.2,2634.1,0.02]
[1748960696083,29.07799045,2634.2,2634.1,0.02]
[1748960696287,30.67799045,2634.2,2634.1,0.02]
[1748960697098,24.43243665,2633.7,2633.6,2.0]
[1748960697393,12.43715763,2633.2,2633.1,0.68666667]
[1748960698371,28.33715763,2633.2,2633.1,0.68666667]
[1748960698575,31.54939115,2633.2,2633.1,0.68666667]
[1748960698772,32.12475791,2633.2,2633.1,0.68666667]
[1748960698984,32.12475993,2633.2,2633.1,0.68666667]
[1748960699227,31.91121608,2633.2,2633.1,0.68666667]
[1748960699564,15.45989416,2633.2,2633.1,0.68666667]
[1748960699787,23.84789416,2633.2,2633.1,0.68666667]
[1748960700399,32.15091711,2633.2,2633.1,0.68666667]
[1748960700585,31.93739115,2633.2,2633.1,0.68666667]
[1748960700766,32.29327081,2633.2,2633.1,0.68666667]
[1748960700965,40.2990497,2633.2,2633.1,0.68666667]
[1748960701276,31.91105306,2633.2,2633.1,0.68666667]
[1748960701493,40.29905306,2633.2,2633.1,0.68666667]
[1748960701801,39.93739115,2633.2,2633.1,0.68666667]
[1748960701976,31.54939115,2633.2,2633.1,0.68666667]
[1748960702176,23.68807711,2633.2,2633.1,0.68666667]
[1748960702700,23.29989416,2633.2,2633.1,0.68666667]
[1748960702876,13.52266064,2633.2,2633.1,0.68666667]
[1748960703067,11.69766064,2633.2,2633.1,0.68666667]
[1748960703268,13.52266064,2633.2,2633.1,0.68666667]
[1748960705691,14.07266064,2633.2,2633.1,0.68666667]
[1748960707572,22.07266064,2633.2,2633.1,0.68666667]
[1748960707792,25.9425548,2633.2,2633.1,0.68666667]
[1748960708506,24.1175548,2633.2,2633.1,0.68666667]
[1748960708711,11.69766064,2633.2,2633.1,0.68666667]
[1748960709007,5.62266064,2633.2,2633.1,0.68666667]
[1748960709670,3.79766064,2633.2,2633.1,0.68666667]
[1748960709877,5.62266064,2633.2,2633.1,0.68666667]
[1748960711899,6.17266064,2633.2,2633.1,0.68666667]
[1748960712229,9.19217964,2633.2,2633.1,0.68666667]
[1748960712423,6.81717964,2633.2,2633.1,0.68666667]
[1748960712605,0.19816614,2633.6,2633.1,0.68666667]
[1748960712786,9.825,2633.8,2633.1,0.68666667]
[1748960713125,1.825,2633.8,2633.1,0.68666667]
[1748960713276,7.9,2634.4,2633.2,8.08949699]
[1748960713612,3.79671797,2633.9,2633.4,3.79732695]
[1748960713820,3.79621896,2634.2,2633.6,3.79705162]
[1748960714330,0.19811533,2634.5,2633.5,8.08949699]
[1748960714639,3.79644301,2634.1,2633.6,3.79698402]
[1748960714779,3.7962412,2634.2,2633.7,3.79689109]
[1748960715476,3.7962412,2634.2,2633.5,11.88663464]
[1748960715477,3.79636426,2634.1,2633.6,3.79701417]
[1748960715703,3.79653157,2634.0,2633.5,11.88663797]
[1748960715902,12.18595595,2634.4,2633.5,9.78300992]
[1748960716114,3.79691936,2633.8,2633.3,12.67512739]
[1748960716628,3.79672076,2633.9,2633.4,3.79737073]
[1748960716841,3.796477,2634.1,2633.6,11.88645015]
[1748960716985,3.79650896,2634.0,2633.6,8.08949699]
[1748960717932,3.79650896,2634.0,2633.5,3.79715058]
[1748960718088,3.79641906,2634.1,2633.6,3.79708325]
[1748960718427,3.79641906,2634.1,2633.6,3.79702049]
[1748960719228,3.79657717,2634.0,2633.5,6.25330628]
[1748960719436,3.79657717,2634.0,2633.5,2.45615482]
[1748960719632,3.79666127,2633.9,2633.5,2.45615482]
[1748960719833,3.79731715,2633.5,2632.8,8.08949699]
[1748960720033,3.79693966,2633.7,2632.8,8.08949699]
[1748960720355,3.79757598,2633.3,2632.8,11.88772556]
[1748960720660,3.79757598,2633.3,2632.7,0.51]
[1748960720661,3.79766064,2633.2,2632.7,0.51]
[1748960720942,0.75951967,2633.2,2632.7,4.30830314]
[1748960721144,3.79751642,2633.3,2632.8,3.79821772]
[1748960721445,3.79730483,2633.5,2633.0,11.88743546]
[1748960721608,3.79708383,2633.6,2633.0,8.08949699]
[1748960721814,3.79743589,2633.4,2633.0,8.08949699]
[1748960722255,3.79766064,2633.2,2632.7,4.68523633]
[1748960722615,3.79766064,2633.2,2632.7,0.51]
[1748960724118,3.79729436,2633.5,2632.9,8.08949699]
[1748960724318,12.18396193,2633.7,2632.9,8.08949699]
[1748960724657,3.79766064,2633.2,2632.7,11.79830416]
[1748960724949,3.79758473,2633.3,2632.8,3.79820153]
[1748960725111,3.79741181,2633.4,2632.7,8.0]
[1748960725311,3.79760899,2633.3,2632.8,3.79822886]
[1748960725506,3.79760899,2633.3,2632.7,8.0]
[1748960725507,3.79766064,2633.2,2632.7,8.0]
[1748960725756,4.55718085,2633.2,2632.7,8.0]
[1748960726619,11.67018085,2633.2,2632.1,0.02]
[1748960726820,19.67018085,2633.2,2632.1,0.02]
[1748960728368,21.49418085,2633.2,2632.1,0.02]
[1748960729852,14.93118085,2633.2,2632.1,0.02]
[1748960730190,6.38118085,2633.2,2632.4,8.08949699]
[1748960730476,12.94518085,2633.2,2632.4,11.88822772]
[1748960731338,11.12118085,2633.2,2632.5,3.79866472]
[1748960731538,11.12118085,2633.2,2632.4,11.88825527]
[1748960731727,6.564,2633.4,2632.7,8.08949699]
[1748960731927,3.79766064,2633.2,2632.7,8.08949699]
[1748960732249,10.36142806,2633.4,2632.7,8.08949699]
[1748960732435,3.79766064,2633.2,2632.7,11.88781454]
[1748960732765,3.79766064,2633.2,2632.7,8.08949699]
[1748960733521,3.7975881,2633.3,2632.8,3.79816242]
[1748960733732,3.79743831,2633.4,2632.9,3.79801957]
[1748960733946,3.79743831,2633.4,2632.8,3.79823313]
[1748960734241,1.824,2633.5,2632.7,8.08949699]
[1748960734440,3.79766064,2633.2,2632.6,3.79848471]
[1748960735052,3.79754836,2633.3,2632.8,3.79814658]
[1748960735554,3.79766064,2633.2,2632.7,11.88780376]
[1748960735872,3.7975911,2633.3,2632.8,3.79819656]
[1748960736078,3.79766064,2633.2,2632.7,8.08949699]
[1748960736245,3.79766064,2633.2,2632.7,11.88780632]
[1748960736654,3.79766064,2633.2,2632.6,3.79846847]
[1748960737157,3.79766064,2633.2,2632.7,3.79838145]
[1748960737323,3.79766064,2633.2,2632.5,7.51309]
[1748960737522,3.79766064,2633.2,2632.4,8.08949699]
[1748960737523,3.79760025,2633.3,2632.8,3.79817617]
[1748960737724,1.824,2633.5,2632.8,3.79817617]
[1748960737927,12.18430451,2633.5,2633.0,3.79788178]
[1748960738184,5.62126891,2633.5,2633.0,11.88738912]
[1748960738480,7.9,2633.9,2633.0,11.88738912]
[1748960738481,3.79668536,2633.9,2633.4,3.79730849]
[1748960738630,3.79597675,2634.4,2633.5,3.79722179]
[1748960738631,3.79657994,2634.0,2633.5,3.79722179]
[1748960739033,3.79625469,2634.2,2633.4,3.79731623]
[1748960739279,3.79668695,2633.9,2633.3,8.08949699]
[1748960739485,3.79655501,2634.0,2633.4,0.84716549]
[1748960739993,3.79638333,2634.1,2633.4,0.84716549]
[1748960740449,3.79647163,2634.1,2633.5,3.79722802]
[1748960740632,6.563,2634.2,2633.5,3.79722802]
[1748960740832,3.79651961,2634.0,2633.5,3.79722802]
[1748960741582,3.79669595,2633.9,2633.4,4.64441296]
[1748960741738,3.79657979,2634.0,2633.5,3.79720021]
[1748960742234,1.17295375,2634.8,2633.9,8.08949699]
[1748960742460,1.17295375,2634.8,2633.9,11.88608687]
[1748960742461,3.79603946,2634.4,2633.9,11.88608687]
[1748960742646,3.79582902,2634.5,2634.0,3.79649331]
[1748960743378,4.55497031,2634.5,2633.8,3.79673975]
[1748960743678,12.18202698,2634.4,2633.8,3.79669131]
[1748960743965,8.386,2634.4,2634.0,3.79648374]
[1748960744170,8.386,2634.4,2633.8,3.79669131]
[1748960744345,3.79548646,2634.8,2634.2,3.79614956]
[1748960744542,3.79568032,2634.6,2634.1,3.79628665]
[1748960744895,8.385,2634.7,2633.8,3.7967019]
[1748960745040,12.18053879,2634.7,2634.0,3.79641195]
[1748960745235,3.795803,2634.5,2634.0,3.79641195]
[1748960745770,5.01377012,2634.6,2634.1,3.79634758]
[1748960745975,1.21805388,2634.6,2633.9,8.08949699]
[1748960746176,3.79535917,2634.8,2634.3,3.79600967]
[1748960746374,1.59954386,2634.8,2634.3,3.79596873]
[1748960746580,1.59954386,2634.8,2634.2,3.79614736]
[1748960746775,3.79550249,2634.7,2634.2,3.79614736]
[1748960747377,10.35641187,2634.8,2634.3,3.79604907]
[1748960747584,3.79536554,2634.8,2634.3,3.79600274]
[1748960747785,5.39480983,2634.8,2634.3,3.79600274]
[1748960748448,3.79550762,2634.7,2634.2,3.79614484]
[1748960748648,5.39486307,2634.8,2634.3,3.79607292]
[1748960749251,12.19826128,2634.9,2634.4,3.79589846]
[1748960749596,0.02,2634.9,2634.5,3.79566134]
[1748960749954,0.02,2634.9,2634.4,3.79593076]
[1748960750263,3.81531789,2634.9,2634.3,11.8854573]
[1748960750593,4.57626517,2634.9,2634.1,8.0]
[1748960750778,3.7958671,2634.5,2633.9,11.79665135]
[1748960750982,3.7958671,2634.5,2634.0,3.79650387]
[1748960752367,3.7958671,2634.5,2633.6,20.26855613]
[1748960752368,3.7956426,2634.6,2633.5,4.30713581]
[1748960752595,3.79630535,2634.2,2633.7,3.79692642]
[1748960753459,3.79608875,2634.3,2633.8,3.79671325]
[1748960754100,3.79599627,2634.4,2633.9,3.79664485]
[1748960754302,10.35502486,2634.4,2633.7,8.08949699]
[1748960754495,3.79626929,2634.2,2633.7,11.8864048]
[1748960754699,3.7961546,2634.3,2633.8,3.79679311]
[1748960754866,5.21136673,2634.2,2633.7,3.79687192]
[1748960755066,1.41513485,2634.2,2633.8,3.79678356]
[1748960755468,5.21142317,2634.2,2633.7,3.79692463]
[1748960755695,5.21138103,2634.2,2633.7,3.79682103]
[1748960755896,3.7965185,2634.0,2633.5,8.0]
[1748960756099,4.31756863,2634.1,2633.6,3.79707382]
[1748960756314,3.79651574,2634.0,2633.6,3.79707382]
[1748960756520,4.31755935,2634.1,2633.6,3.79707382]
[1748960756707,4.31755935,2634.1,2633.4,0.19179632]
[1748960756708,0.55,2631.4,2631.0,1.48478229]
[1748960756907,0.55,2631.4,2631.2,0.31726307]
[1748960756908,18.42840284,2631.3,2631.2,0.31726307]
[1748960757206,6.628,2631.6,2631.2,0.31726307]
[1748960757407,6.628,2631.6,2631.2,4.11780903]
[1748960757719,6.63,2631.9,2631.3,2.07940574]
[1748960757921,6.63,2631.9,2631.4,0.31723896]
[1748960758127,0.55,2632.5,2631.5,9.90142373]
[1748960758128,6.633,2632.2,2631.5,9.90142373]
[1748960758292,3.79766064,2633.2,2631.8,11.8891295]
[1748960758492,21.3971717,2633.1,2631.9,1.50609164]
[1748960758692,17.38576606,2633.1,2631.9,1.50609164]
[1748960759015,3.79867987,2632.5,2631.9,1.50609164]
[1748960759189,3.79867987,2632.5,2632.0,0.31716664]
[1748960759394,0.55,2632.8,2632.0,0.31716664]
[1748960759590,3.79876592,2632.5,2632.0,0.31716664]
[1748960759791,3.79876592,2632.5,2631.9,1.18891295]
[1748960760005,3.79882353,2632.4,2631.8,8.08949699]
[1748960760192,3.79886488,2632.4,2631.8,8.08949699]
[1748960760393,6.636,2632.6,2631.5,8.0]
[1748960760720,3.79917331,2632.2,2631.5,8.0]
[1748960761487,4.55859776,2632.4,2631.5,8.0]
[1748960761488,3.79935414,2632.1,2631.5,8.0]
[1748960761686,0.75973911,2632.4,2631.4,1.822]
[1748960761899,3.79970986,2631.8,2631.4,1.822]
[1748960762393,3.79985518,2631.7,2631.2,8.08949699]
[1748960762731,3.79975647,2631.8,2631.3,8.0]
[1748960763087,3.79982645,2631.7,2631.3,8.0]
[1748960763320,3.80001678,2631.6,2631.3,8.0]
[1748960763526,3.80006331,2631.6,2631.1,0.02]
[1748960763821,3.80036249,2631.4,2631.1,0.02]
[1748960764023,3.80018376,2631.5,2631.1,0.02]
[1748960764185,3.80035631,2631.4,2631.1,0.02]
[1748960764385,3.80054727,2631.2,2631.1,0.02]
[1748960764895,2.372,2631.9,2631.1,0.02]
[1748960765103,3.80054727,2631.2,2631.1,0.02]
[1748960765690,0.55,2631.9,2631.1,0.02]
[1748960765885,4.5586002,2632.4,2631.5,8.08949699]
[1748960766085,3.79885007,2632.4,2631.8,8.08949699]
[1748960766290,1.823,2633.0,2632.1,8.08949699]
[1748960766291,3.79839851,2632.7,2632.1,8.08949699]
[1748960766521,1.823,2633.0,2632.1,11.88873061]
[1748960766806,3.79861477,2632.6,2632.2,8.0]
[1748960767016,8.467,2633.0,2631.6,0.8089497]
[1748960767323,1.2405384,2632.9,2631.6,11.79994818]
[1748960767531,1.2405384,2632.9,2631.7,3.79973853]
[1748960767532,3.79823761,2632.8,2631.7,3.79973853]
[1748960767687,0.37976606,2633.1,2632.2,3.79901668]
[1748960767892,3.79832793,2632.8,2632.2,3.79901675]
[1748960768118,3.79846394,2632.7,2632.1,11.88863629]
[1748960768323,1.823,2633.3,2632.2,8.0]
[1748960768498,3.79767043,2633.2,2632.5,3.79858453]
[1748960768695,3.79820254,2632.9,2632.2,11.79909035]
[1748960768900,3.79823781,2632.8,2632.3,5.82659759]
[1748960769095,3.79814803,2632.9,2632.3,5.82659759]
[1748960769325,6.646,2633.2,2632.4,3.79879811]
[1748960769503,3.79828212,2632.8,2632.3,2.02770765]
[1748960769696,3.79810211,2632.9,2632.3,2.02770765]
[1748960769902,11.10827789,2633.2,2632.3,2.02770765]
[1748960770105,3.79832658,2632.8,2632.3,2.02770765]
[1748960770329,3.79816875,2632.9,2632.3,2.02770765]
[1748960770505,10.43888628,2633.1,2632.2,8.0]
[1748960770704,10.43888628,2633.1,2632.1,8.0]
[1748960770705,3.79853999,2632.6,2632.1,8.0]
[1748960770919,0.55,2632.8,2631.5,4.31009193]
[1748960771103,3.79946989,2632.0,2631.5,8.0]
[1748960771310,4.35054727,2631.2,2629.6,4.9950884]
[1748960771510,4.35054727,2631.2,2629.4,0.18781683]
[1748960771511,29.39908191,2631.2,2629.4,0.18781683]
[1748960771734,32.4881909,2631.2,2629.2,0.3874192]
[1748960771940,32.4881909,2631.2,2629.1,0.02]
[1748960771941,31.56459024,2631.2,2629.1,0.02]
[1748960772244,31.56459024,2631.2,2629.1,3.82352228]
[1748960772245,31.24659424,2631.2,2629.1,3.82352228]
[1748960772396,34.75126877,2631.2,2629.1,10.02]
[1748960772600,34.75126877,2631.2,2629.1,0.02]
[1748960772918,35.12139461,2631.2,2629.5,3.80293761]
[1748960773229,35.33457133,2631.2,2629.5,10.0]
[1748960773432,35.33457133,2631.2,2629.5,3.80297726]
[1748960773433,35.12139461,2631.2,2629.5,3.80297726]
[1748960773618,26.84668686,2631.2,2629.2,18.0]
[1748960773819,35.11939461,2631.2,2629.4,3.80303443]
[1748960774207,35.11939461,2631.2,2629.4,3.80309586]
[1748960774530,35.11939461,2631.2,2629.5,3.80297435]
[1748960774722,35.11939461,2631.2,2629.5,3.80292669]
[1748960774951,35.11939461,2631.2,2629.6,3.80279665]
[1748960775120,18.07485997,2631.2,2629.2,8.41653464]
[1748960775323,26.49139461,2631.2,2629.8,3.80245926]
[1748960775632,11.05973413,2631.2,2630.0,3.80215535]
[1748960775833,14.27103298,2631.2,2630.1,3.8220455]
[1748960776135,5.64803298,2631.2,2630.5,3.80153427]